fUSD/lending_fUSD_20250716
["ID","MTS","AMOUNT","RATE_DAILY","PERIOD"]
[372410898,1752633076535,-2486.16,0.00022054,2]
[372410899,1752633076545,-460.0,0.00022054,2]
[372410900,1752633076556,-497.88679973,0.00022054,2]
[372410901,1752633076566,-2772.26,0.00022054,2]
[372410902,1752633076578,-460.0,0.00022054,2]
[372410903,1752633076590,-3509.44,0.00022054,2]
[372410904,1752633076600,-1046.16,0.00022054,2]
[372410905,1752633076611,-460.0,0.00022054,2]
[372410906,1752633076622,-1140.39,0.00022054,2]
[372410907,1752633076631,-151.0,0.00022054,7]
[372410908,1752633076641,-460.0,0.00022054,2]
[372410909,1752633076650,-1995.12,0.00022054,2]
[372410910,1752633076661,-1414.5,0.00022054,2]
[372410911,1752633076670,-715.88,0.00022054,2]
[372410912,1752633076683,-460.0,0.00022054,2]
[372410913,1752633076693,-460.0,0.00022054,2]
[372410914,1752633076703,-460.0,0.00022054,2]
[372410915,1752633076713,-460.0,0.00022054,2]
[372410916,1752633076722,-1381.65,0.00022054,2]
[372410917,1752633076731,-2979.97,0.00022054,2]
[372410918,1752633076740,-4107.08,0.00022054,2]
[372410919,1752633076750,-1831.99,0.00022054,2]
[372410920,1752633076761,-151.0,0.00022054,7]
[372410921,1752633076770,-2105.38,0.00022054,2]
[372410922,1752633076779,-905.26,0.00022054,2]
[372410923,1752633076789,-460.0,0.00022054,2]
[372410924,1752633076798,-460.0,0.00022054,2]
[372410925,1752633076807,-725.97,0.00022054,2]
[372410926,1752633076816,-770.22,0.00022054,2]
[372410927,1752633076826,-460.0,0.00022054,2]
[372410928,1752633076835,-460.0,0.00022054,2]
[372410929,1752633076845,-788.72,0.00022054,2]
[372410930,1752633076855,-1799.33,0.00022054,2]
[372410931,1752633076864,-3056.8,0.00022054,2]
[372410932,1752633076874,-460.0,0.00022054,2]
[372410933,1752633076885,-460.0,0.00022054,2]
[372410934,1752633076896,-885.7,0.00022054,2]
[372410935,1752633076907,-460.0,0.00022054,2]
[372410936,1752633076918,-876.22,0.00022054,2]
[372410937,1752633076929,-1817.87,0.00022054,2]
[372410938,1752633076939,-460.0,0.00022054,2]
[372410939,1752633076950,-460.0,0.00022054,2]
[372410940,1752633076959,-575.98241143,0.00022054,2]
[372410941,1752633076968,-1680.33,0.00022054,2]
[372410942,1752633076978,-460.0,0.00022054,2]
[372410943,1752633076987,-1296.66,0.00022054,2]
[372410944,1752633077114,-385.561155,0.00022054,2]
[372410945,1752633077134,-460.0,0.00022054,2]
[372410946,1752633077144,-1545.32,0.00022054,2]
[372410947,1752633077153,-1428.51,0.00022054,2]
[372410948,1752633077163,-1470.1,0.00022054,2]
[372410949,1752633077172,-2513.72,0.00022054,2]
[372410950,1752633077182,-1152.74,0.00022054,2]
[372410951,1752633077191,-639.86,0.00022054,2]
[372410952,1752633077201,-631.34,0.00022054,2]
[372410953,1752633077210,-460.0,0.00022054,2]
[372410954,1752633077220,-154.717263,0.00022054,7]
[372410955,1752633077230,-1257.95,0.00022054,2]
[372410956,1752633077240,-463.1495854,0.00022054,2]
[372410957,1752633077250,-3249.22,0.00022054,2]
[372410958,1752633077260,-460.0,0.00022054,2]
[372410959,1752633077269,-523.57861449,0.00022054,2]
[372410960,1752633077279,-460.0,0.00022054,2]
[372410961,1752633077288,-154.71727,0.00022054,7]
[372410962,1752633077298,-1226.12,0.00022054,2]
[372410963,1752633077307,-587.13,0.00022054,2]
[372410964,1752633077316,-481.52,0.00022054,2]
[372410965,1752633077326,-460.0,0.00022054,2]
[372410966,1752633077337,-460.0,0.00022054,2]
[372410967,1752633077346,-460.0,0.00022054,2]
[372410968,1752633077356,-2916.77,0.00022054,2]
[372410969,1752633077365,-2485.84,0.00022054,2]
[372410970,1752633077374,-4031.8,0.00022054,2]
[372410971,1752633077383,-151.0,0.00022054,7]
[372410972,1752633077393,-460.0,0.00022054,2]
[372410973,1752633077406,-1102.39,0.00022054,2]
[372410974,1752633077415,-938.31,0.00022054,2]
[372410975,1752633077425,-460.0,0.00022054,2]
[372410976,1752633077434,-638.03,0.00022054,2]
[372410977,1752633077443,-2130.56,0.00022054,2]
[372410978,1752633077453,-464.86499642,0.00022054,2]
[372410979,1752633077462,-627.48,0.00022054,2]
[372410980,1752633077472,-460.0,0.00022054,2]
[372410981,1752633077482,-463.15338586,0.00022054,2]
[372410982,1752633077491,-1743.72,0.00022054,2]
[372410983,1752633077500,-553.49,0.00022054,2]
[372410984,1752633077510,-483.33847202,0.00022054,2]
[372410985,1752633077519,-462.81,0.00022054,2]
[372410986,1752633077529,-1792.96,0.00022054,2]
[372410987,1752633077539,-848.43,0.00022054,2]
[372410988,1752633077548,-460.0,0.00022054,2]
[372410989,1752633077557,-460.0,0.00022054,2]
[372410990,1752633077566,-1497.63,0.00022054,2]
[372410991,1752633077576,-460.0,0.00022054,2]
[372410992,1752633077585,-231.507309,0.00022054,7]
[372410993,1752633077594,-231.507309,0.00022054,7]
[372410994,1752633077603,-460.0,0.00022054,2]
[372410995,1752633077613,-460.0,0.00022054,2]
[372410996,1752633077622,-460.0,0.00022054,2]
[372410997,1752633077632,-460.0,0.00022054,2]
[372410998,1752633077641,-631.36,0.00022054,2]
[372410999,1752633077650,-534.5,0.00022054,2]
[372411000,1752633077660,-231.507309,0.00022054,7]
[372411001,1752633077670,-231.507303,0.00022054,7]
[372411002,1752633077679,-460.0,0.00022054,2]
[372411003,1752633077688,-1936.62,0.00022054,2]
[372411004,1752633077698,-342.28319613,0.00022054,2]
[372411005,1752633077707,-766.03,0.00022054,2]
[372411006,1752633077717,-468.23436012,0.00022054,2]
[372411007,1752633077727,-460.0,0.00022054,2]
[372411008,1752633077736,-1180.55,0.00022054,2]
[372411009,1752633077745,-1159.7,0.00022054,2]
[372411010,1752633077755,-3093.13,0.00022054,2]
[372411011,1752633077764,-462.44915009,0.00022054,2]
[372411012,1752633077774,-533.600887,0.00022054,2]
[372411013,1752633077784,-2990.62,0.00022054,2]
[372411014,1752633077794,-3456.19,0.00022054,2]
[372411015,1752633077803,-460.0,0.00022054,2]
[372411016,1752633077813,-556.57184978,0.00022054,2]
[372411017,1752633077822,-460.0,0.00022054,2]
[372411018,1752633077831,-975.4,0.00022054,2]
[372411019,1752633077841,-1920.32,0.00022054,2]
[372411020,1752633077851,-800.05,0.00022054,2]
[372411021,1752633077860,-1284.42,0.00022054,2]
[372411022,1752633077870,-553.1,0.00022054,2]
[372411023,1752633077881,-1265.64,0.00022054,2]
[372411024,1752633077891,-3325.21,0.00022054,2]
[372411025,1752633077902,-504.28,0.00022054,2]
[372411026,1752633077915,-460.0,0.00022054,2]
[372411027,1752633077926,-808.87,0.00022054,2]
[372411028,1752633077937,-1782.82,0.00022054,2]
[372411029,1752633077949,-606.73651608,0.00022054,2]
[372411030,1752633077959,-996.77,0.00022054,2]
[372411031,1752633077970,-460.0,0.00022054,2]
[372411032,1752633077980,-544.58,0.00022054,2]
[372411033,1752633077989,-460.0,0.00022054,2]
[372411034,1752633077999,-1101.06,0.00022054,2]
[372411035,1752633078011,-460.0,0.00022054,2]
[372411036,1752633078021,-1020.25,0.00022054,2]
[372411037,1752633078030,-460.0,0.00022054,2]
[372411038,1752633078040,-460.0,0.00022054,2]
[372411039,1752633078050,-460.0,0.00022054,2]
[372411040,1752633078060,-460.0,0.00022054,2]
[372411041,1752633078071,-1446.85,0.00022054,2]
[372411042,1752633078080,-151.0,0.00022054,7]
[372411043,1752633078090,-1270.06,0.00022054,2]
[372411044,1752633078100,-460.0,0.00022054,2]
[372411045,1752633078109,-475.33350282,0.00022054,2]
[372411046,1752633078119,-460.0,0.00022054,2]
[372411047,1752633078129,-593.7,0.00022054,2]
[372411048,1752633078139,-2439.66,0.00022054,2]
[372411049,1752633078149,-460.0,0.00022054,2]
[372411050,1752633078158,-1480.18,0.00022054,2]
[372411051,1752633078168,-460.0,0.00022054,2]
[372411052,1752633078178,-460.0,0.00022054,2]
[372411053,1752633078190,-3529.76,0.00022054,2]
[372411054,1752633078200,-460.0,0.00022054,2]
[372411055,1752633078210,-460.0,0.00022054,2]
[372411056,1752633078220,-460.0,0.00022054,2]
[372411057,1752633078231,-460.0,0.00022054,2]
[372411058,1752633078244,-3224.93,0.00022054,2]
[372411059,1752633078255,-3522.75,0.00022054,2]
[372411060,1752633078271,-561.52,0.00022054,2]
[372411061,1752633078283,-460.0,0.00022054,2]
[372411062,1752633078298,-2046.88,0.00022054,2]
[372411063,1752633078311,-2414.88,0.00022054,2]
[372411064,1752633078323,-1229.0,0.00022054,2]
[372411065,1752633078334,-460.0,0.00022054,2]
[372411066,1752633078346,-460.0,0.00022054,2]
[372411067,1752633078356,-1660.25,0.00022054,2]
[372411068,1752633078367,-854.13,0.00022054,2]
[372411069,1752633078377,-460.0,0.00022054,2]
[372411070,1752633078388,-864.66,0.00022054,2]
[372411071,1752633078398,-4131.75,0.00022054,2]
[372411072,1752633078411,-460.0,0.00022054,2]
[372411073,1752633078420,-460.0,0.00022054,2]
[372411074,1752633078430,-946.49,0.00022054,2]
[372411075,1752633078440,-1750.19,0.00022054,2]
[372411076,1752633078452,-2805.83,0.00022054,2]
[372411077,1752633078461,-672.96,0.00022054,2]
[372411078,1752633078472,-460.0,0.00022054,2]
[372411079,1752633078483,-928.48,0.00022054,2]
[372411080,1752633078495,-460.0,0.00022054,2]
[372411081,1752633078504,-3373.47,0.00022054,2]
[372411082,1752633078518,-2074.06,0.00022054,2]
[372411083,1752633078527,-460.0,0.00022054,2]
[372411084,1752633078539,-460.0,0.00022054,2]
[372411085,1752633078548,-460.0,0.00022054,2]
[372411086,1752633078558,-637.85,0.00022054,2]
[372411087,1752633078567,-773.38,0.00022054,2]
[372411088,1752633078578,-902.66,0.00022054,2]
[372411089,1752633078588,-1461.99,0.00022054,2]
[372411090,1752633078597,-460.0,0.00022054,2]
[372411091,1752633078607,-738.58,0.00022054,2]
[372411092,1752633078617,-2205.24,0.00022054,2]
[372411093,1752633078627,-536.78,0.00022054,2]
[372411094,1752633078636,-460.0,0.00022054,2]
[372411095,1752633078646,-555.86,0.00022054,2]
[372411096,1752633078656,-712.01,0.00022054,2]
[372411097,1752633078666,-460.0,0.00022054,2]
[372411098,1752633078676,-460.0,0.00022054,2]
[372411099,1752633078685,-460.0,0.00022054,2]
[372411100,1752633078696,-460.0,0.00022054,2]
[372411101,1752633078706,-1744.45,0.00022054,2]
[372411102,1752633078715,-1024.89,0.00022054,2]
[372411103,1752633078725,-1246.84,0.00022054,2]
[372411104,1752633078735,-1113.7,0.00022054,2]
[372411105,1752633078745,-460.0,0.00022054,2]
[372411106,1752633078755,-2079.65,0.00022054,2]
[372411107,1752633078768,-492.16801707,0.00022054,2]
[372411108,1752633078779,-1160.79,0.00022054,2]
[372411109,1752633078789,-460.0,0.00022054,2]
[372411110,1752633078799,-465.87319344,0.00022054,2]
[372411111,1752633078809,-1965.34,0.00022054,2]
[372411112,1752633078819,-455.13088291,0.00022054,2]
[372411113,1752633078829,-608.01,0.00022054,2]
[372411114,1752633078839,-596.23,0.00022054,2]
[372411115,1752633078849,-460.0,0.00022054,2]
[372411116,1752633078859,-460.0,0.00022054,2]
[372411117,1752633078869,-460.0,0.00022054,2]
[372411118,1752633078878,-1021.43,0.00022054,2]
[372411119,1752633078888,-2106.64,0.00022054,2]
[372411120,1752633078898,-979.61,0.00022054,2]
[372411121,1752633078907,-664.04,0.00022054,2]
[372411122,1752633078918,-460.0,0.00022054,2]
[372411123,1752633078928,-3403.61,0.00022054,2]
[372411124,1752633078939,-460.0,0.00022054,2]
[372411125,1752633078949,-1055.48,0.00022054,2]
[372411126,1752633078960,-460.0,0.00022054,2]
[372411127,1752633078971,-460.0,0.00022054,2]
[372411128,1752633078981,-460.0,0.00022054,2]
[372411129,1752633078991,-939.51,0.00022054,2]
[372411130,1752633079001,-460.0,0.00022054,2]
[372411131,1752633079014,-540.0,0.00022054,2]
[372411132,1752633079026,-938.49,0.00022054,2]
[372411133,1752633079037,-460.0,0.00022054,2]
[372411134,1752633079047,-2955.7,0.00022054,2]
[372411135,1752633079057,-1360.63,0.00022054,2]
[372411136,1752633079067,-3632.4,0.00022054,2]
[372411137,1752633079077,-460.0,0.00022054,2]
[372411138,1752633079087,-752.62,0.00022054,2]
[372411139,1752633079098,-460.0,0.00022054,2]
[372411140,1752633079108,-3101.79,0.00022054,2]
[372411141,1752633079119,-460.0,0.00022054,2]
[372411142,1752633079129,-460.0,0.00022054,2]
[372411143,1752633079140,-460.39,0.00022054,2]
[372411144,1752633079150,-816.96,0.00022054,2]
[372411145,1752633079160,-460.0,0.00022054,2]
[372411146,1752633079170,-151.0,0.00022054,7]
[372411147,1752633079180,-151.0,0.00022054,7]
[372411148,1752633079191,-460.0,0.00022054,2]
[372411149,1752633079201,-460.0,0.00022054,2]
[372411150,1752633079212,-1014.75,0.00022054,2]
[372411151,1752633079222,-460.0,0.00022054,2]
[372411152,1752633079598,-460.0,0.00022054,2]
[372411153,1752633079608,-460.0,0.00022054,2]
[372411154,1752633079618,-460.0,0.00022054,2]
[372411155,1752633079629,-3130.43,0.00022054,2]
[372411156,1752633079640,-527.82,0.00022054,2]
[372411157,1752633079650,-1162.63,0.00022054,2]
[372411158,1752633079662,-461.43019228,0.00022054,2]
[372411159,1752633079672,-2835.94,0.00022054,2]
[372411160,1752633079683,-460.0,0.00022054,2]
[372411161,1752633079692,-460.0,0.00022054,2]
[372411162,1752633079703,-1521.83,0.00022054,2]
[372411163,1752633079713,-3553.66,0.00022054,2]
[372411164,1752633079724,-588.67,0.00022054,2]
[372411165,1752633079734,-460.0,0.00022054,2]
[372411166,1752633079745,-460.0,0.00022054,2]
[372411167,1752633079755,-991.22,0.00022054,2]
[372411168,1752633079768,-470.68,0.00022054,2]
[372411169,1752633079780,-777.55,0.00022054,2]
[372411170,1752633079791,-460.0,0.00022054,2]
[372411171,1752633079801,-1908.52,0.00022054,2]
[372411172,1752633079812,-460.0,0.00022054,2]
[372411173,1752633079823,-460.0,0.00022054,2]
[372411174,1752633079833,-460.0,0.00022054,2]
[372411175,1752633079843,-1163.74,0.00022054,2]
[372411176,1752633079852,-1391.4,0.00022054,2]
[372411177,1752633079862,-699.66,0.00022054,2]
[372411178,1752633079872,-460.0,0.00022054,2]
[372411179,1752633079881,-1010.08,0.00022054,2]
[372411180,1752633079891,-460.0,0.00022054,2]
[372411181,1752633079901,-460.0,0.00022054,2]
[372411182,1752633079911,-460.0,0.00022054,2]
[372411183,1752633079921,-460.0,0.00022054,2]
[372411184,1752633079932,-807.18,0.00022054,2]
[372411185,1752633079942,-460.0,0.00022054,2]
[372411186,1752633079953,-460.0,0.00022054,2]
[372411187,1752633079963,-483.9,0.00022054,2]
[372411188,1752633079975,-761.38,0.00022054,2]
[372411189,1752633079985,-460.0,0.00022054,2]
[372411190,1752633079994,-460.0,0.00022054,2]
[372411191,1752633080003,-1091.38,0.00022054,2]
[372411192,1752633080015,-460.0,0.00022054,2]
[372411193,1752633080024,-460.0,0.00022054,2]
[372411194,1752633080034,-1423.89,0.00022054,2]
[372411195,1752633080043,-1577.22,0.00022054,2]
[372411196,1752633080052,-460.0,0.00022054,2]
[372411197,1752633080062,-460.0,0.00022054,2]
[372411198,1752633080072,-925.03,0.00022054,2]
[372411199,1752633080081,-1058.3,0.00022054,2]
[372411200,1752633080091,-2300.2,0.00022054,2]
[372411201,1752633080101,-2430.16,0.00022054,2]
[372411202,1752633080112,-460.0,0.00022054,2]
[372411203,1752633080122,-578.35,0.00022054,2]
[372411204,1752633080133,-460.0,0.00022054,2]
[372411205,1752633080143,-1556.61,0.00022054,2]
[372411206,1752633080153,-940.74,0.00022054,2]
[372411207,1752633080163,-559.11,0.00022054,2]
[372411208,1752633080173,-1428.54,0.00022054,2]
[372411209,1752633080183,-460.0,0.00022054,2]
[372411210,1752633080193,-2638.75,0.00022054,2]
[372411211,1752633080203,-1705.7,0.00022054,2]
[372411212,1752633080213,-460.0,0.00022054,2]
[372411213,1752633080223,-737.06,0.00022054,2]
[372411214,1752633080232,-460.0,0.00022054,2]
[372411215,1752633080242,-460.0,0.00022054,2]
[372411216,1752633080251,-655.72,0.00022054,2]
[372411217,1752633080263,-944.17,0.00022054,2]
[372411218,1752633080273,-3439.2,0.00022054,2]
[372411219,1752633080283,-1597.78,0.00022054,2]
[372411220,1752633080292,-992.93,0.00022054,2]
[372411221,1752633080301,-631.99,0.00022054,2]
[372411222,1752633080311,-1484.33,0.00022054,2]
[372411223,1752633080321,-460.0,0.00022054,2]
[372411224,1752633080331,-801.24,0.00022054,2]
[372411225,1752633080341,-2018.75,0.00022054,2]
[372411226,1752633080351,-2078.02,0.00022054,2]
[372411227,1752633080361,-593.53,0.00022054,2]
[372411228,1752633080372,-1199.12,0.00022054,2]
[372411229,1752633080382,-460.0,0.00022054,2]
[372411230,1752633080391,-19744.95,0.00022054,2]
[372411231,1752633080403,-461.18133096,0.00022054,2]
[372411232,1752633080414,-460.0,0.00022054,2]
[372411233,1752633080424,-460.0,0.00022054,2]
[372411234,1752633080433,-823.2,0.00022054,2]
[372411235,1752633080443,-618.77,0.00022054,2]
[372411236,1752633080453,-740.07,0.00022054,2]
[372411237,1752633080463,-2074.09,0.00022054,2]
[372411238,1752633080472,-750.91,0.00022054,2]
[372411239,1752633080483,-460.0,0.00022054,2]
[372411240,1752633080492,-460.0,0.00022054,2]
[372411241,1752633080502,-460.0,0.00022054,2]
[372411242,1752633080513,-460.0,0.00022054,2]
[372411243,1752633080523,-1341.75,0.00022054,2]
[372411244,1752633080532,-5442.86,0.00022054,2]
[372411245,1752633080542,-460.0,0.00022054,2]
[372411246,1752633080551,-460.0,0.00022054,2]
[372411247,1752633080561,-1833.26,0.00022054,2]
[372411248,1752633080571,-462.78390641,0.00022054,2]
[372411249,1752633080580,-460.0,0.00022054,2]
[372411250,1752633080589,-1787.86,0.00022054,2]
[372411251,1752633080599,-27228.32,0.00022054,2]
[372411252,1752633080609,-3479.8,0.00022054,2]
[372411253,1752633080619,-460.0,0.00022054,2]
[372411254,1752633080628,-1445.56,0.00022054,2]
[372411255,1752633080640,-1505.55,0.00022054,2]
[372411256,1752633080651,-536.3,0.00022054,2]
[372411257,1752633080662,-464.40307353,0.00022054,2]
[372411258,1752633080671,-11452.6,0.00022054,2]
[372411259,1752633080681,-913.82,0.00022054,2]
[372411260,1752633080690,-2576.35,0.00022054,2]
[372411261,1752633080700,-463.34737469,0.00022054,2]
[372411262,1752633080709,-462.71107199,0.00022054,2]
[372411263,1752633080719,-3756.16,0.00022054,2]
[372411264,1752633080730,-484.5,0.00022054,2]
[372411265,1752633080740,-3743.84,0.00022054,2]
[372411266,1752633080750,-988.16,0.00022054,2]
[372411267,1752633080759,-573.06,0.00022054,2]
[372411268,1752633080770,-1181.59,0.00022054,2]
[372411269,1752633080780,-460.0,0.00022054,2]
[372411270,1752633080790,-541.27257143,0.00022054,2]
[372411271,1752633080799,-460.0,0.00022054,2]
[372411272,1752633080809,-1546.29,0.00022054,2]
[372411273,1752633080820,-460.0,0.00022054,2]
[372411274,1752633080829,-158329.34,0.00022054,2]
[372411275,1752633080839,-2557.33,0.00022054,2]
[372411276,1752633080849,-2347.3,0.00022054,2]
[372411277,1752633080861,-491.53,0.00022054,2]
[372411278,1752633080871,-460.0,0.00022054,2]
[372411279,1752633080883,-460.0,0.00022054,2]
[372411280,1752633080892,-1920.65,0.00022054,2]
[372411281,1752633080903,-1824.93,0.00022054,2]
[372411282,1752633080912,-10851.4,0.00022054,2]
[372411283,1752633080922,-1381.01,0.00022054,2]
[372411284,1752633080931,-2394.76,0.00022054,2]
[372411285,1752633080942,-460.0,0.00022054,2]
[372411286,1752633080951,-460.0,0.00022054,2]
[372411287,1752633080961,-14866.5,0.00022054,2]
[372411288,1752633080971,-483.47314674,0.00022054,2]
[372411289,1752633080983,-6558.75,0.00022054,2]
[372411290,1752633080993,-461.01,0.00022054,2]
[372411291,1752633081003,-2548.26,0.00022054,2]
[372411292,1752633081015,-2958.68,0.00022054,2]
[372411293,1752633081025,-1215.25,0.00022054,2]
[372411294,1752633081034,-543.54,0.00022054,2]
[372411295,1752633081044,-460.0,0.00022054,2]
[372411296,1752633081054,-616.79,0.00022054,2]
[372411297,1752633081064,-460.0,0.00022054,2]
[372411298,1752633081073,-3951.2,0.00022054,2]
[372411299,1752633081084,-1346.98,0.00022054,2]
[372411300,1752633081094,-1944.28,0.00022054,2]
[372411301,1752633081105,-460.0,0.00022054,2]
[372411302,1752633081115,-460.0,0.00022054,2]
[372411303,1752633081125,-460.0,0.00022054,2]
[372411304,1752633081136,-1318.05,0.00022054,2]
[372411305,1752633081146,-460.0,0.00022054,2]
[372411306,1752633081155,-4717.22,0.00022054,2]
[372411307,1752633081165,-1261.13,0.00022054,2]
[372411308,1752633081175,-460.0,0.00022054,2]
[372411309,1752633081185,-460.0,0.00022054,2]
[372411310,1752633081194,-1517.93,0.00022054,2]
[372411311,1752633081204,-460.0,0.00022054,2]
[372411312,1752633081214,-1225.27,0.00022054,2]
[372411313,1752633081224,-8253.58,0.00022054,2]
[372411314,1752633081233,-1065.32,0.00022054,2]
[372411315,1752633081244,-460.0,0.00022054,2]
[372411316,1752633081254,-4569.71,0.00022054,2]
[372411317,1752633081265,-460.0,0.00022054,2]
[372411318,1752633081275,-472.02,0.00022054,2]
[372411319,1752633081285,-1920.94,0.00022054,2]
[372411320,1752633081295,-570.76,0.00022054,2]
[372411321,1752633081305,-10130.97,0.00022054,2]
[372411322,1752633081315,-460.0,0.00022054,2]
[372411323,1752633081324,-227.169309,0.00022054,7]
[372411324,1752633081333,-460.0,0.00022054,2]
[372411325,1752633081343,-227.169309,0.00022054,7]
[372411326,1752633081352,-17365.65,0.00022054,2]
[372411327,1752633081362,-1420.27,0.00022054,2]
[372411328,1752633081372,-1571.21,0.00022054,2]
[372411329,1752633081381,-911.74,0.00022054,2]
[372411330,1752633081391,-460.0,0.00022054,2]
[372411331,1752633081402,-460.0,0.00022054,2]
[372411332,1752633081412,-460.0,0.00022054,2]
[372411333,1752633081422,-1877.41,0.00022054,2]
[372411334,1752633081432,-3173.9,0.00022054,2]
[372411335,1752633081443,-8222.73,0.00022054,2]
[372411336,1752633081452,-460.0,0.00022054,2]
[372411337,1752633081461,-227.169309,0.00022054,7]
[372411338,1752633081471,-227.169309,0.00022054,7]
[372411339,1752633081482,-460.0,0.00022054,2]
[372411340,1752633081492,-1724.3,0.00022054,2]
[372411341,1752633081501,-460.0,0.00022054,2]
[372411342,1752633081513,-2006.63,0.00022054,2]
[372411343,1752633081523,-551.55,0.00022054,2]
[372411344,1752633081537,-7879.46,0.00022054,2]
[372411345,1752633081547,-460.0,0.00022054,2]
[372411346,1752633081556,-460.0,0.00022054,2]
[372411347,1752633081566,-14920.74,0.00022054,2]
[372411348,1752633081577,-460.0,0.00022054,2]
[372411349,1752633081586,-421.86,0.00022054,2]
[372411350,1752633081596,-2622.85,0.00022054,2]
[372411351,1752633081607,-1273.73,0.00022054,2]
[372411352,1752633081617,-460.0,0.00022054,2]
[372411353,1752633081627,-460.0,0.00022054,2]
[372411354,1752633081638,-938.59,0.00022054,2]
[372411355,1752633081648,-460.0,0.00022054,2]
[372411356,1752633081659,-460.0,0.00022054,2]
[372411357,1752633081669,-4973.15,0.00022054,2]
[372411358,1752633081679,-1160.59,0.00022054,2]
[372411359,1752633081689,-4717.54,0.00022054,2]
[372411360,1752633081699,-460.0,0.00022054,2]
[372411361,1752633081708,-2154.03,0.00022054,2]
[372411362,1752633081718,-462.4917072,0.00022054,2]
[372411363,1752633081727,-852.96,0.00022054,2]
[372411364,1752633081737,-519.8,0.00022054,2]
[372411365,1752633081746,-5587.56,0.00022054,2]
[372411366,1752633081756,-460.0,0.00022054,2]
[372411367,1752633081767,-460.0,0.00022054,2]
[372411368,1752633081777,-3057.67,0.00022054,2]
[372411369,1752633081787,-2806.95,0.00022054,2]
[372411370,1752633081796,-460.0,0.00022054,2]
[372411371,1752633081805,-1947.6,0.00022054,2]
[372411372,1752633081816,-1254.25,0.00022054,2]
[372411373,1752633081825,-460.0,0.00022054,2]
[372411374,1752633081835,-801.2,0.00022054,2]
[372411375,1752633081845,-460.0,0.00022054,2]
[372411376,1752633081854,-450.0,0.00022054,2]
[372411377,1752633081864,-460.0,0.00022054,2]
[372411378,1752633081873,-462.14202721,0.00022054,2]
[372411379,1752633081883,-460.0,0.00022054,2]
[372411380,1752633081893,-460.0,0.00022054,2]
[372411381,1752633081904,-4039.77,0.00022054,2]
[372411382,1752633081914,-460.0,0.00022054,2]
[372411383,1752633081924,-1205.5,0.00022054,2]
[372411384,1752633081935,-461.32401831,0.00022054,2]
[372411385,1752633081946,-2982.01,0.00022054,2]
[372411386,1752633081957,-4489.21,0.00022054,2]
[372411387,1752633081969,-17982.45402445,0.00022054,2]
[372411388,1752633083821,-151.0,0.000217,2]
[372411389,1752633083831,-460.0,0.00021917,2]
[372411390,1752633083842,-543.22,0.00021917,2]
[372411391,1752633083852,-460.0,0.00021917,2]
[372411392,1752633083862,-715.028556,0.00021917,2]
[372411393,1752633083872,-715.028556,0.00021917,2]
[372411394,1752633083883,-715.028556,0.00021917,2]
[372411395,1752633083894,-715.028556,0.00021917,2]
[372411396,1752633083904,-460.0,0.00021917,2]
[372411397,1752633083915,-2439.09,0.00021917,2]